[Event "Early-Titled-Tuesday-Blitz-April-23-2024"]
[Site "Chess.com"]
[Date "2024.04.23"]
[Round "3"]
[White "Airquake"]
[Black "GMKrikor"]
[Result "0-1"]
[WhiteElo "2662"]
[BlackElo "2890"]
[TimeControl "180+1"]
[EndTime "8:29:37 PDT"]
[Termination "GMKrikor won on time"]

1. b3 {[%clk 0:02:58.5]} 1... Nf6 {[%clk 0:02:56.4]} 2. Bb2 {[%clk 0:02:59.4]}
2... d5 {[%clk 0:02:56.4]} 3. e3 {[%clk 0:02:59.8]} 3... e6 {[%clk 0:02:56.1]}
4. Nf3 {[%clk 0:02:59.8]} 4... Bd6 {[%clk 0:02:55.9]} 5. c4 {[%clk 0:02:56.9]}
5... O-O {[%clk 0:02:55.8]} 6. Nc3 {[%clk 0:02:57.1]} 6... Re8 {[%clk
0:02:52.6]} 7. d4 {[%clk 0:02:57.1]} 7... b6 {[%clk 0:02:50.1]} 8. Bd3 {[%clk
0:02:56.2]} 8... Bb7 {[%clk 0:02:49.7]} 9. Qc2 {[%clk 0:02:52.6]} 9... a6 {[%clk
0:02:47]} 10. h3 {[%clk 0:02:42.4]} 10... Nbd7 {[%clk 0:02:42.7]} 11. cxd5
{[%clk 0:02:31.3]} 11... exd5 {[%clk 0:02:39.9]} 12. O-O {[%clk 0:02:29.4]}
12... Ne4 {[%clk 0:02:33.9]} 13. Rac1 {[%clk 0:02:28.9]} 13... Qe7 {[%clk
0:02:29.7]} 14. Nd2 {[%clk 0:02:19]} 14... f5 {[%clk 0:02:15.3]} 15. Ne2 {[%clk
0:02:02.6]} 15... Rac8 {[%clk 0:02:03.6]} 16. Rce1 {[%clk 0:01:45.4]} 16... g6
{[%clk 0:01:48.5]} 17. f3 {[%clk 0:01:38.7]} 17... Nxd2 {[%clk 0:01:43.6]} 18.
Qxd2 {[%clk 0:01:39.6]} 18... Qxe3+ {[%clk 0:01:38.8]} 19. Qxe3 {[%clk
0:01:29.8]} 19... Rxe3 {[%clk 0:01:39.7]} 20. Bc2 {[%clk 0:01:29.9]} 20... Rce8
{[%clk 0:01:00.7]} 21. Kf2 {[%clk 0:01:30.5]} 21... Bb4 {[%clk 0:00:53]} 22. Nc3
{[%clk 0:01:21.5]} 22... Rxe1 {[%clk 0:00:41.2]} 23. Rxe1 {[%clk 0:01:22.4]}
23... Rxe1 {[%clk 0:00:40.9]} 24. Kxe1 {[%clk 0:01:23.3]} 24... Kf7 {[%clk
0:00:38.8]} 25. Ke2 {[%clk 0:01:23]} 25... f4 {[%clk 0:00:36.1]} 26. Nd1 {[%clk
0:01:20.3]} 26... Bd6 {[%clk 0:00:32.9]} 27. Nf2 {[%clk 0:01:19.1]} 27... a5
{[%clk 0:00:32.8]} 28. Bd3 {[%clk 0:01:14]} 28... Nf8 {[%clk 0:00:31]} 29. Ng4
{[%clk 0:01:06.4]} 29... Ne6 {[%clk 0:00:30.6]} 30. h4 {[%clk 0:00:53.1]} 30...
h5 {[%clk 0:00:30.4]} 31. Ne5+ {[%clk 0:00:52]} 31... Bxe5 {[%clk 0:00:30.6]}
32. dxe5 {[%clk 0:00:52.9]} 32... c5 {[%clk 0:00:28.2]} 33. Kf2 {[%clk
0:00:47.6]} 33... Bc6 {[%clk 0:00:26.1]} 34. a4 {[%clk 0:00:30.8]} 34... d4
{[%clk 0:00:16.4]} 35. Bc4 {[%clk 0:00:25.7]} 35... Ke7 {[%clk 0:00:16.7]} 36.
g3 {[%clk 0:00:22.5]} 36... fxg3+ {[%clk 0:00:15.4]} 37. Kxg3 {[%clk 0:00:23.4]}
37... Nc7 {[%clk 0:00:15.1]} 38. Kf4 {[%clk 0:00:08.2]} 38... Bd5 {[%clk
0:00:15.2]} 39. Bd3 {[%clk 0:00:04.4]} 39... Kf7 {[%clk 0:00:12.9]} 40. Bc2
{[%clk 0:00:04.4]} 40... Ne6+ {[%clk 0:00:12]} 41. Kg3 {[%clk 0:00:04.8]} 41...
Ng7 {[%clk 0:00:07.5]} 42. Kf4 {[%clk 0:00:03.6]} 42... Be6 {[%clk 0:00:08]} 43.
Bc1 {[%clk 0:00:02.5]} 43... Bf5 {[%clk 0:00:08]} 44. Bd1 {[%clk 0:00:02.7]}
44... Ne6+ {[%clk 0:00:08.4]} 45. Kg3 {[%clk 0:00:03.1]} 45... Nc7 {[%clk
0:00:07.3]} 46. Bd2 {[%clk 0:00:03]} 46... Nd5 {[%clk 0:00:07.3]} 47. Be2 {[%clk
0:00:03.3]} 47... Ke6 {[%clk 0:00:07.3]} 48. Bc4 {[%clk 0:00:02.5]} 48... Kxe5
{[%clk 0:00:06.8]} 49. Bxd5 {[%clk 0:00:02.8]} 49... Kxd5 {[%clk 0:00:07.3]} 50.
Kf4 {[%clk 0:00:03.3]} 50... Bc2 {[%clk 0:00:07.5]} 0-1

[Event "Early-Titled-Tuesday-Blitz-April-23-2024"]
[Site "Chess.com"]
[Date "2024.04.23"]
[Round "3"]
[White "Zarinur"]
[Black "Hope_6"]
[Result "1-0"]
[WhiteElo "2516"]
[BlackElo "2679"]
[TimeControl "180+1"]
[EndTime "8:29:37 PDT"]
[Termination "Zarinur won on time"]

1. e4 {[%clk 0:03:00.9]} 1... c6 {[%clk 0:03:00]} 2. d4 {[%clk 0:02:59.2]} 2...
d5 {[%clk 0:03:00.3]} 3. e5 {[%clk 0:02:59.5]} 3... Bf5 {[%clk 0:02:59.6]} 4.
Nd2 {[%clk 0:02:59.7]} 4... e6 {[%clk 0:02:58.4]} 5. Nb3 {[%clk 0:03:00.3]} 5...
a6 {[%clk 0:02:54.6]} 6. Nf3 {[%clk 0:03:00.6]} 6... c5 {[%clk 0:02:51.8]} 7.
dxc5 {[%clk 0:03:01.5]} 7... Nc6 {[%clk 0:02:51.8]} 8. c3 {[%clk 0:02:56.1]}
8... Nge7 {[%clk 0:02:46.1]} 9. Bd3 {[%clk 0:02:52.1]} 9... Bxd3 {[%clk
0:02:38.7]} 10. Qxd3 {[%clk 0:02:53]} 10... Ng6 {[%clk 0:02:35.7]} 11. O-O
{[%clk 0:02:33.7]} 11... Ngxe5 {[%clk 0:02:33.6]} 12. Nxe5 {[%clk 0:02:34.6]}
12... Nxe5 {[%clk 0:02:33.9]} 13. Qg3 {[%clk 0:02:29.6]} 13... Ng6 {[%clk
0:02:16.4]} 14. Be3 {[%clk 0:01:53.8]} 14... Be7 {[%clk 0:02:12.8]} 15. Nd2
{[%clk 0:01:49.5]} 15... O-O {[%clk 0:02:07.1]} 16. b4 {[%clk 0:01:37.2]} 16...
Bf6 {[%clk 0:02:02.3]} 17. Rac1 {[%clk 0:01:33.1]} 17... Qd7 {[%clk 0:01:57.6]}
18. f4 {[%clk 0:01:23.8]} 18... Nh4 {[%clk 0:01:50.2]} 19. Bd4 {[%clk 0:01:17]}
19... Nf5 {[%clk 0:01:48.9]} 20. Qd3 {[%clk 0:01:16.8]} 20... Nxd4 {[%clk
0:01:26.4]} 21. cxd4 {[%clk 0:01:17.7]} 21... Rfc8 {[%clk 0:01:23.5]} 22. Nf3
{[%clk 0:01:06.9]} 22... Qa4 {[%clk 0:01:18.1]} 23. a3 {[%clk 0:01:03.9]} 23...
g6 {[%clk 0:01:09.7]} 24. Ne5 {[%clk 0:00:59.8]} 24... Be7 {[%clk 0:01:01.7]}
25. g4 {[%clk 0:00:41.6]} 25... f6 {[%clk 0:00:55.7]} 26. Nf3 {[%clk 0:00:39.9]}
26... Qd7 {[%clk 0:00:55.2]} 27. h3 {[%clk 0:00:38.2]} 27... Qc7 {[%clk
0:00:51.9]} 28. Qe3 {[%clk 0:00:36]} 28... Qc6 {[%clk 0:00:48.5]} 29. Rfe1
{[%clk 0:00:30.6]} 29... Kf7 {[%clk 0:00:46.5]} 30. f5 {[%clk 0:00:20.8]} 30...
gxf5 {[%clk 0:00:33.6]} 31. gxf5 {[%clk 0:00:21.7]} 31... Rg8+ {[%clk
0:00:33.1]} 32. Kh1 {[%clk 0:00:21.9]} 32... e5 {[%clk 0:00:23.9]} 33. dxe5
{[%clk 0:00:22.8]} 33... d4 {[%clk 0:00:22.3]} 34. Qf4 {[%clk 0:00:12.5]} 34...
fxe5 {[%clk 0:00:17.9]} 35. Rxe5 {[%clk 0:00:10.7]} 35... Bf6 {[%clk 0:00:17.1]}
36. Re6 {[%clk 0:00:10.9]} 36... Qd5 {[%clk 0:00:15.7]} 37. Rd6 {[%clk
0:00:08.8]} 37... Qa2 {[%clk 0:00:13.7]} 38. Qd2 {[%clk 0:00:04.7]} 38... Qxa3
{[%clk 0:00:10.8]} 39. Rf1 {[%clk 0:00:04.6]} 39... Rae8 {[%clk 0:00:09.4]} 40.
Qh6 {[%clk 0:00:05]} 40... Be7 {[%clk 0:00:04.6]} 41. Qe6+ {[%clk 0:00:04.7]}
41... Kf8 {[%clk 0:00:05]} 42. Qh6+ {[%clk 0:00:05.4]} 42... Kf7 {[%clk
0:00:05.1]} 43. Re6 {[%clk 0:00:03.9]} 43... Rg7 {[%clk 0:00:04.3]} 44. Ne5+
{[%clk 0:00:02]} 44... Kf8 {[%clk 0:00:03.8]} 45. f6 {[%clk 0:00:02.4]} 1-0

[Event "Early-Titled-Tuesday-Blitz-April-23-2024"]
[Site "Chess.com"]
[Date "2024.04.23"]
[Round "3"]
[White "Kirill_Klukin"]
[Black "yobdc"]
[Result "1-0"]
[WhiteElo "2840"]
[BlackElo "2603"]
[TimeControl "180+1"]
[EndTime "8:29:38 PDT"]
[Termination "Kirill_Klukin won on time"]

1. d4 {[%clk 0:03:00.9]} 1... e6 {[%clk 0:02:59.5]} 2. Nf3 {[%clk 0:03:00.4]}
2... f5 {[%clk 0:02:58.8]} 3. c4 {[%clk 0:02:59.8]} 3... Nf6 {[%clk 0:02:59.1]}
4. Nc3 {[%clk 0:03:00.5]} 4... Bb4 {[%clk 0:02:59.3]} 5. Qb3 {[%clk 0:02:51.5]}
5... a5 {[%clk 0:02:58.2]} 6. g3 {[%clk 0:02:51.1]} 6... b6 {[%clk 0:02:54.9]}
7. Bg2 {[%clk 0:02:51.6]} 7... Bb7 {[%clk 0:02:54.9]} 8. O-O {[%clk 0:02:51.6]}
8... O-O {[%clk 0:02:52.8]} 9. a3 {[%clk 0:02:39.2]} 9... Bxc3 {[%clk
0:02:52.4]} 10. Qxc3 {[%clk 0:02:39.9]} 10... Be4 {[%clk 0:02:37.2]} 11. b4
{[%clk 0:02:27.8]} 11... axb4 {[%clk 0:02:30.3]} 12. axb4 {[%clk 0:02:28.7]}
12... Rxa1 {[%clk 0:02:28.2]} 13. Qxa1 {[%clk 0:02:29.6]} 13... Nc6 {[%clk
0:02:21.6]} 14. b5 {[%clk 0:02:07.1]} 14... Na5 {[%clk 0:02:16.3]} 15. Qa4
{[%clk 0:02:01]} 15... Qa8 {[%clk 0:02:09]} 16. Bd2 {[%clk 0:01:56.4]} 16... Qb7
{[%clk 0:02:00.2]} 17. Bxa5 {[%clk 0:01:42.1]} 17... Ra8 {[%clk 0:01:59.6]} 18.
Qa3 {[%clk 0:01:41.2]} 18... d6 {[%clk 0:01:44.5]} 19. Qe3 {[%clk 0:01:32.4]}
19... Rxa5 {[%clk 0:01:25.8]} 20. Ng5 {[%clk 0:01:21.7]} 20... h6 {[%clk
0:01:16.5]} 21. Bxe4 {[%clk 0:01:20]} 21... fxe4 {[%clk 0:00:42.2]} 22. Nxe6
{[%clk 0:01:19.6]} 22... Qc8 {[%clk 0:00:27.9]} 23. d5 {[%clk 0:01:18.9]} 23...
Ra2 {[%clk 0:00:23.8]} 24. h3 {[%clk 0:01:11.9]} 24... Rc2 {[%clk 0:00:20.6]}
25. Rc1 {[%clk 0:01:12]} 25... Rxc1+ {[%clk 0:00:19.8]} 26. Qxc1 {[%clk
0:01:12.9]} 26... Qa8 {[%clk 0:00:19.8]} 27. Qf4 {[%clk 0:00:55.1]} 27... Qa2
{[%clk 0:00:18.1]} 28. Kg2 {[%clk 0:00:55.8]} 28... Qxe2 {[%clk 0:00:18]} 29.
Nxc7 {[%clk 0:00:39.7]} 29... Qxc4 {[%clk 0:00:17.5]} 30. Qxd6 {[%clk
0:00:35.6]} 30... e3 {[%clk 0:00:17.9]} 31. Qe6+ {[%clk 0:00:22.8]} 31... Kh8
{[%clk 0:00:17]} 32. Ne8 {[%clk 0:00:19.8]} 32... Qxd5+ {[%clk 0:00:12.9]} 33.
Qxd5 {[%clk 0:00:20.1]} 33... Nxd5 {[%clk 0:00:13.8]} 34. fxe3 {[%clk
0:00:19.7]} 34... Nxe3+ {[%clk 0:00:14.1]} 35. Kf3 {[%clk 0:00:20.4]} 35... Nc2
{[%clk 0:00:14.2]} 36. Ke4 {[%clk 0:00:19.7]} 36... Na3 {[%clk 0:00:11.9]} 37.
Nd6 {[%clk 0:00:19.1]} 37... g6 {[%clk 0:00:11.8]} 38. Kd5 {[%clk 0:00:19.4]}
38... Kg7 {[%clk 0:00:11.7]} 39. Kc6 {[%clk 0:00:19.8]} 39... Kf6 {[%clk
0:00:12.2]} 40. Kxb6 {[%clk 0:00:20.4]} 40... Ke5 {[%clk 0:00:12.2]} 41. Kc5
{[%clk 0:00:19.5]} 41... Nxb5 {[%clk 0:00:08.8]} 42. Nxb5 {[%clk 0:00:20.1]}
42... Ke4 {[%clk 0:00:09.2]} 43. Nd4 {[%clk 0:00:20.6]} 43... Ke3 {[%clk
0:00:08.9]} 44. Kd5 {[%clk 0:00:21.1]} 44... Kf2 {[%clk 0:00:09.3]} 45. g4
{[%clk 0:00:15.2]} 45... Kg3 {[%clk 0:00:09.6]} 46. Ke4 {[%clk 0:00:14]} 46...
Kxh3 {[%clk 0:00:09.9]} 47. Kf4 {[%clk 0:00:12.7]} 47... Kh4 {[%clk 0:00:06.3]}
48. Nf3+ {[%clk 0:00:13.1]} 48... Kh3 {[%clk 0:00:06.7]} 49. Ne5 {[%clk
0:00:12.5]} 49... g5+ {[%clk 0:00:06.4]} 50. Kf5 {[%clk 0:00:13]} 50... Kh4
{[%clk 0:00:05.5]} 51. Kg6 {[%clk 0:00:10.3]} 51... Kg3 {[%clk 0:00:05.3]} 52.
Kxh6 {[%clk 0:00:10.8]} 52... Kf4 {[%clk 0:00:05.7]} 53. Kh5 {[%clk 0:00:11.3]}
1-0

[Event "Early-Titled-Tuesday-Blitz-April-23-2024"]
[Site "Chess.com"]
[Date "2024.04.23"]
[Round "3"]
[White "Meri-Arabidze"]
[Black "UK_23"]
[Result "1-0"]
[WhiteElo "2663"]
[BlackElo "2483"]
[TimeControl "180+1"]
[EndTime "8:29:40 PDT"]
[Termination "Meri-Arabidze won by resignation"]

1. Nf3 {[%clk 0:03:00.9]} 1... Nf6 {[%clk 0:02:59.6]} 2. b3 {[%clk 0:03:01.5]}
2... c5 {[%clk 0:02:59.8]} 3. Bb2 {[%clk 0:03:02]} 3... Nc6 {[%clk 0:03:00.4]}
4. e3 {[%clk 0:03:02.4]} 4... d6 {[%clk 0:02:59.7]} 5. d4 {[%clk 0:03:00.6]}
5... cxd4 {[%clk 0:02:58.7]} 6. exd4 {[%clk 0:03:01.5]} 6... d5 {[%clk
0:02:56.1]} 7. Bd3 {[%clk 0:03:01.4]} 7... Bg4 {[%clk 0:02:55.7]} 8. h3 {[%clk
0:03:01.3]} 8... Bh5 {[%clk 0:02:55.7]} 9. O-O {[%clk 0:03:01.4]} 9... e6 {[%clk
0:02:56.2]} 10. Nbd2 {[%clk 0:03:01.4]} 10... Bd6 {[%clk 0:02:56.4]} 11. Qe1
{[%clk 0:03:01.4]} 11... Qc7 {[%clk 0:02:51.2]} 12. a3 {[%clk 0:02:59.3]} 12...
O-O {[%clk 0:02:50.2]} 13. Ne5 {[%clk 0:02:57]} 13... Bxe5 {[%clk 0:02:48.8]}
14. dxe5 {[%clk 0:02:56.9]} 14... Nd7 {[%clk 0:02:49.4]} 15. g4 {[%clk
0:02:25.5]} 15... Bg6 {[%clk 0:02:48.5]} 16. Bxg6 {[%clk 0:02:25.6]} 16... hxg6
{[%clk 0:02:49.4]} 17. f4 {[%clk 0:02:20.1]} 17... Qb6+ {[%clk 0:02:34.6]} 18.
Rf2 {[%clk 0:02:17]} 18... Nd4 {[%clk 0:02:27]} 19. Rc1 {[%clk 0:02:08.5]} 19...
Rac8 {[%clk 0:02:25.4]} 20. Qd1 {[%clk 0:02:02.8]} 20... g5 {[%clk 0:02:20.6]}
21. Ne4 {[%clk 0:01:35.3]} 21... dxe4 {[%clk 0:01:48.8]} 22. Bxd4 {[%clk
0:01:34.9]} 22... Qc7 {[%clk 0:01:48.9]} 23. Qd2 {[%clk 0:01:27.5]} 23... gxf4
{[%clk 0:01:42.4]} 24. Qxf4 {[%clk 0:01:28.4]} 24... f6 {[%clk 0:01:29.1]} 25.
Qxe4 {[%clk 0:01:18.6]} 25... fxe5 {[%clk 0:01:26.8]} 26. Be3 {[%clk 0:01:12]}
26... Rxf2 {[%clk 0:01:14]} 27. Bxf2 {[%clk 0:01:12.9]} 27... Qc3 {[%clk
0:01:06.9]} 28. Kg2 {[%clk 0:01:03.3]} 28... Nc5 {[%clk 0:00:54.5]} 29. Qg6
{[%clk 0:00:17.9]} 29... e4 {[%clk 0:00:20.6]} 30. Bxc5 {[%clk 0:00:15.6]} 30...
Qf3+ {[%clk 0:00:20.8]} 31. Kg1 {[%clk 0:00:12.7]} 31... Qg3+ {[%clk 0:00:20.2]}
32. Kh1 {[%clk 0:00:11.4]} 32... Qxh3+ {[%clk 0:00:20.5]} 33. Kg1 {[%clk
0:00:11.9]} 33... Qg3+ {[%clk 0:00:20.8]} 34. Kh1 {[%clk 0:00:12.2]} 34... Qf3+
{[%clk 0:00:20.5]} 35. Kg1 {[%clk 0:00:12.4]} 35... Rxc5 {[%clk 0:00:21.4]} 36.
Qxe6+ {[%clk 0:00:11.7]} 36... Qf7 {[%clk 0:00:20.8]} 37. Qxf7+ {[%clk
0:00:11.7]} 37... Kxf7 {[%clk 0:00:21.7]} 38. c4 {[%clk 0:00:12.2]} 38... Kf6
{[%clk 0:00:21.4]} 39. Kf2 {[%clk 0:00:12.5]} 39... Ke5 {[%clk 0:00:22]} 40. Ke3
{[%clk 0:00:13.1]} 40... Rc6 {[%clk 0:00:21.4]} 41. Rd1 {[%clk 0:00:12.2]} 41...
Rg6 {[%clk 0:00:21.2]} 42. Rd5+ {[%clk 0:00:12.2]} 42... Ke6 {[%clk 0:00:21.9]}
43. g5 {[%clk 0:00:11.6]} 43... b6 {[%clk 0:00:20.8]} 44. Kxe4 {[%clk
0:00:11.8]} 44... a5 {[%clk 0:00:20]} 45. Kf4 {[%clk 0:00:10.3]} 45... Ke7
{[%clk 0:00:20.5]} 46. Kf5 {[%clk 0:00:09.7]} 46... Re6 {[%clk 0:00:20.6]} 47.
Re5 {[%clk 0:00:09.9]} 47... g6+ {[%clk 0:00:20.9]} 48. Ke4 {[%clk 0:00:09.9]}
48... Kd6 {[%clk 0:00:21.8]} 49. Rxe6+ {[%clk 0:00:10]} 49... Kxe6 {[%clk
0:00:22.7]} 50. b4 {[%clk 0:00:10.5]} 50... Kd6 {[%clk 0:00:23.1]} 51. Kd4
{[%clk 0:00:10.5]} 51... Kc6 {[%clk 0:00:22.6]} 52. Ke5 {[%clk 0:00:08.2]} 52...
axb4 {[%clk 0:00:20.2]} 53. axb4 {[%clk 0:00:08.3]} 53... Kd7 {[%clk 0:00:19.8]}
54. Kd5 {[%clk 0:00:07.5]} 54... Kc7 {[%clk 0:00:20.1]} 55. Ke6 {[%clk
0:00:07.7]} 55... Kc6 {[%clk 0:00:20.7]} 56. Ke5 {[%clk 0:00:08]} 56... Kc7
{[%clk 0:00:20.8]} 57. c5 {[%clk 0:00:07.9]} 57... bxc5 {[%clk 0:00:19.8]} 58.
bxc5 {[%clk 0:00:08.8]} 58... Kc6 {[%clk 0:00:20.7]} 59. Kf6 {[%clk 0:00:09.3]}
59... Kxc5 {[%clk 0:00:21.5]} 60. Kxg6 {[%clk 0:00:10.1]} 60... Kd6 {[%clk
0:00:22.4]} 61. Kf6 {[%clk 0:00:10.4]} 61... Kd7 {[%clk 0:00:22.6]} 62. Kf7
{[%clk 0:00:11]} 1-0

[Event "Early-Titled-Tuesday-Blitz-April-23-2024"]
[Site "Chess.com"]
[Date "2024.04.23"]
[Round "3"]
[White "only_strong_moves"]
[Black "chesslh93"]
[Result "1-0"]
[WhiteElo "2714"]
[BlackElo "2382"]
[TimeControl "180+1"]
[EndTime "8:29:40 PDT"]
[Termination "only_strong_moves won on time"]

1. d4 {[%clk 0:03:00.6]} 1... d5 {[%clk 0:03:00]} 2. c4 {[%clk 0:03:00.5]} 2...
e6 {[%clk 0:03:00.5]} 3. Nc3 {[%clk 0:03:00.2]} 3... Nf6 {[%clk 0:03:00.5]} 4.
cxd5 {[%clk 0:03:00.7]} 4... exd5 {[%clk 0:03:01.4]} 5. Bg5 {[%clk 0:03:01.2]}
5... c6 {[%clk 0:03:01.4]} 6. e3 {[%clk 0:03:01.7]} 6... Be7 {[%clk 0:03:00.1]}
7. Bd3 {[%clk 0:03:02.1]} 7... Nbd7 {[%clk 0:02:59.9]} 8. Qc2 {[%clk 0:03:02.5]}
8... O-O {[%clk 0:03:00.2]} 9. Nge2 {[%clk 0:03:02.9]} 9... Re8 {[%clk
0:03:00.8]} 10. O-O {[%clk 0:03:03.2]} 10... Nf8 {[%clk 0:03:01.1]} 11. f3
{[%clk 0:03:03]} 11... Nh5 {[%clk 0:03:01.3]} 12. Bxe7 {[%clk 0:03:02.8]} 12...
Qxe7 {[%clk 0:03:02.2]} 13. e4 {[%clk 0:03:03.7]} 13... dxe4 {[%clk 0:03:03.1]}
14. fxe4 {[%clk 0:03:04.1]} 14... Be6 {[%clk 0:03:03.8]} 15. Rae1 {[%clk
0:03:02.9]} 15... Rad8 {[%clk 0:02:59.8]} 16. h3 {[%clk 0:02:54.1]} 16... c5
{[%clk 0:02:01]} 17. d5 {[%clk 0:02:36.9]} 17... c4 {[%clk 0:01:48.1]} 18. Bxc4
{[%clk 0:02:27.9]} 18... Qc5+ {[%clk 0:01:46.9]} 19. Rf2 {[%clk 0:02:27.7]}
19... Qxc4 {[%clk 0:01:45.5]} 20. dxe6 {[%clk 0:02:27.9]} 20... Nxe6 {[%clk
0:01:40.1]} 21. Ref1 {[%clk 0:02:26.3]} 21... Qc5 {[%clk 0:01:20.6]} 22. Qc1
{[%clk 0:02:15.4]} 22... Nf6 {[%clk 0:01:05.9]} 23. Ng3 {[%clk 0:02:08.1]} 23...
Rd7 {[%clk 0:00:48.1]} 24. Kh1 {[%clk 0:02:02.5]} 24... Qe5 {[%clk 0:00:32.5]}
25. Qe3 {[%clk 0:01:59.7]} 25... Nd4 {[%clk 0:00:23.1]} 26. Rd1 {[%clk
0:01:40.6]} 26... Nc6 {[%clk 0:00:21.7]} 27. Rxd7 {[%clk 0:01:30.4]} 27... Nxd7
{[%clk 0:00:22.6]} 28. Rf5 {[%clk 0:01:30.1]} 28... Qd4 {[%clk 0:00:13.5]} 29.
Qxd4 {[%clk 0:01:29.9]} 29... Nxd4 {[%clk 0:00:13.3]} 30. Rd5 {[%clk 0:01:30.8]}
30... Nf6 {[%clk 0:00:03.8]} 31. Rxd4 {[%clk 0:01:30.9]} 31... g6 {[%clk
0:00:03.8]} 32. Kg1 {[%clk 0:01:29.9]} 32... h5 {[%clk 0:00:02.9]} 33. Kf2
{[%clk 0:01:29.6]} 33... Kg7 {[%clk 0:00:01.8]} 34. Kf3 {[%clk 0:01:28.1]} 34...
a6 {[%clk 0:00:02.2]} 35. a4 {[%clk 0:01:27.8]} 35... Re7 {[%clk 0:00:02.2]} 36.
a5 {[%clk 0:01:28.1]} 36... Rc7 {[%clk 0:00:02.4]} 37. Nf1 {[%clk 0:01:25.4]}
37... Rc5 {[%clk 0:00:02.5]} 38. Ra4 {[%clk 0:01:24.3]} 38... Nd7 {[%clk
0:00:02.6]} 39. Ne3 {[%clk 0:01:22.9]} 39... Ne5+ {[%clk 0:00:02.9]} 40. Ke2
{[%clk 0:01:23.6]} 40... Nc6 {[%clk 0:00:03.4]} 41. Nc4 {[%clk 0:01:15.3]} 41...
f5 {[%clk 0:00:02.9]} 42. exf5 {[%clk 0:01:15]} 42... Rxf5 {[%clk 0:00:03.1]}
43. Nd6 {[%clk 0:01:14.8]} 43... Re5+ {[%clk 0:00:02.5]} 44. Kd3 {[%clk
0:01:07.9]} 44... Nxa5 {[%clk 0:00:02.7]} 45. Nce4 {[%clk 0:01:01.8]} 45... Nc6
{[%clk 0:00:02.8]} 46. Nxb7 {[%clk 0:00:59]} 46... Rb5 {[%clk 0:00:02.9]} 47.
Nbd6 {[%clk 0:00:39.8]} 47... Rxb2 {[%clk 0:00:02.6]} 48. g4 {[%clk 0:00:40.3]}
48... hxg4 {[%clk 0:00:02.5]} 49. hxg4 {[%clk 0:00:41.2]} 49... Ne5+ {[%clk
0:00:02.9]} 50. Kd4 {[%clk 0:00:41.9]} 50... Nxg4 {[%clk 0:00:03]} 51. Rxa6
{[%clk 0:00:42.6]} 51... Rd2+ {[%clk 0:00:03]} 52. Kc5 {[%clk 0:00:40.8]} 52...
Re2 {[%clk 0:00:02.9]} 53. Ra7+ {[%clk 0:00:40.4]} 53... Kh6 {[%clk 0:00:03]}
54. Kd5 {[%clk 0:00:38.8]} 54... Nf2 {[%clk 0:00:02.3]} 55. Nf7+ {[%clk
0:00:31.2]} 55... Kh5 {[%clk 0:00:02.1]} 56. Ng3+ {[%clk 0:00:31.6]} 56... Kg4
{[%clk 0:00:01.5]} 57. Nxe2 {[%clk 0:00:32.5]} 1-0

[Event "Early-Titled-Tuesday-Blitz-April-23-2024"]
[Site "Chess.com"]
[Date "2024.04.23"]
[Round "3"]
[White "Hamisandwich"]
[Black "DominguezOnYoutube"]
[Result "0-1"]
[WhiteElo "2720"]
[BlackElo "2943"]
[TimeControl "180+1"]
[EndTime "8:29:41 PDT"]
[Termination "DominguezOnYoutube won by resignation"]

1. a3 {[%clk 0:02:57.7]} 1... e5 {[%clk 0:02:58.8]} 2. c4 {[%clk 0:02:57.7]}
2... Nf6 {[%clk 0:02:57.1]} 3. d3 {[%clk 0:02:58]} 3... d5 {[%clk 0:02:56.7]} 4.
cxd5 {[%clk 0:02:58.9]} 4... Nxd5 {[%clk 0:02:56.8]} 5. Nf3 {[%clk 0:02:59.5]}
5... Nc6 {[%clk 0:02:56.5]} 6. e4 {[%clk 0:02:59.9]} 6... Nf6 {[%clk 0:02:52.4]}
7. Be2 {[%clk 0:02:58.6]} 7... Bc5 {[%clk 0:02:46.4]} 8. O-O {[%clk 0:02:54.3]}
8... O-O {[%clk 0:02:44.5]} 9. Be3 {[%clk 0:02:43]} 9... Bb6 {[%clk 0:02:42.3]}
10. Nc3 {[%clk 0:02:38.7]} 10... Bg4 {[%clk 0:02:40.7]} 11. Na4 {[%clk
0:02:31.7]} 11... Bxf3 {[%clk 0:02:38.4]} 12. Bxf3 {[%clk 0:02:29.8]} 12... Qe7
{[%clk 0:02:36.1]} 13. Rc1 {[%clk 0:02:21]} 13... Rfd8 {[%clk 0:02:34.2]} 14.
Nc5 {[%clk 0:02:09.9]} 14... Nd4 {[%clk 0:02:20.6]} 15. Bxd4 {[%clk 0:01:54.7]}
15... Rxd4 {[%clk 0:02:19.7]} 16. Qc2 {[%clk 0:01:45.1]} 16... c6 {[%clk
0:02:09]} 17. Be2 {[%clk 0:01:36.3]} 17... Bxc5 {[%clk 0:01:56.4]} 18. Qxc5
{[%clk 0:01:35.4]} 18... Qxc5 {[%clk 0:01:57.1]} 19. Rxc5 {[%clk 0:01:36.1]}
19... Nd7 {[%clk 0:01:57.2]} 20. Rc3 {[%clk 0:01:25.5]} 20... Rd8 {[%clk
0:01:35.8]} 21. g3 {[%clk 0:01:21.1]} 21... Kf8 {[%clk 0:01:26]} 22. f4 {[%clk
0:01:20.1]} 22... f6 {[%clk 0:01:25.1]} 23. Bg4 {[%clk 0:01:13.2]} 23... Ke7
{[%clk 0:01:25.1]} 24. Kf2 {[%clk 0:01:05.4]} 24... Nb6 {[%clk 0:01:16.9]} 25.
Be2 {[%clk 0:00:57]} 25... exf4 {[%clk 0:00:42.2]} 26. gxf4 {[%clk 0:00:57]}
26... f5 {[%clk 0:00:43.1]} 27. Ke3 {[%clk 0:00:50.2]} 27... g6 {[%clk 0:00:43]}
28. h4 {[%clk 0:00:36.5]} 28... R4d6 {[%clk 0:00:41.6]} 29. Rh1 {[%clk
0:00:25.6]} 29... Re6 {[%clk 0:00:41.4]} 30. Kf3 {[%clk 0:00:21.7]} 30... Rd4
{[%clk 0:00:38.6]} 31. exf5 {[%clk 0:00:17.2]} 31... gxf5 {[%clk 0:00:39.5]} 32.
Bf1 {[%clk 0:00:09]} 32... Nd5 {[%clk 0:00:39]} 33. Rc4 {[%clk 0:00:09.6]} 33...
Re3+ {[%clk 0:00:29]} 34. Kf2 {[%clk 0:00:09.8]} 34... c5 {[%clk 0:00:29.9]} 35.
Rxd4 {[%clk 0:00:09.4]} 35... cxd4 {[%clk 0:00:30.4]} 36. Bg2 {[%clk 0:00:08.2]}
36... Nxf4 {[%clk 0:00:30.5]} 37. Bxb7 {[%clk 0:00:08.6]} 37... Nxd3+ {[%clk
0:00:30.4]} 38. Kg2 {[%clk 0:00:09.3]} 38... Nf4+ {[%clk 0:00:27.8]} 39. Kf2
{[%clk 0:00:09.9]} 39... Rb3 {[%clk 0:00:27.2]} 40. Rd1 {[%clk 0:00:07]} 40...
Rxb7 {[%clk 0:00:26.1]} 41. Rxd4 {[%clk 0:00:05.5]} 41... Rxb2+ {[%clk
0:00:26.5]} 42. Kf3 {[%clk 0:00:05.1]} 42... Ne6 {[%clk 0:00:26.9]} 43. Ra4
{[%clk 0:00:05.4]} 43... Rb3+ {[%clk 0:00:27.3]} 44. Kf2 {[%clk 0:00:05.2]}
44... Kf6 {[%clk 0:00:26.9]} 45. Rxa7 {[%clk 0:00:05.3]} 45... h5 {[%clk
0:00:26.5]} 46. a4 {[%clk 0:00:04.2]} 46... Ra3 {[%clk 0:00:26.7]} 47. a5 {[%clk
0:00:04.1]} 47... Ke5 {[%clk 0:00:27]} 48. Rh7 {[%clk 0:00:03]} 48... Ra2+
{[%clk 0:00:25.1]} 49. Kf1 {[%clk 0:00:02.9]} 49... Rxa5 {[%clk 0:00:24.5]} 50.
Rxh5 {[%clk 0:00:03.4]} 50... Ke4 {[%clk 0:00:24]} 51. Rh8 {[%clk 0:00:03.1]}
51... Kf3 {[%clk 0:00:23.6]} 52. Ke1 {[%clk 0:00:03]} 52... Ra1+ {[%clk
0:00:21.4]} 53. Kd2 {[%clk 0:00:03.1]} 53... Rh1 {[%clk 0:00:21]} 54. h5 {[%clk
0:00:02.9]} 54... f4 {[%clk 0:00:19.4]} 55. h6 {[%clk 0:00:03.6]} 55... Ng5
{[%clk 0:00:19.5]} 56. Rg8 {[%clk 0:00:03.1]} 56... Ne4+ {[%clk 0:00:19]} 0-1